bitfinex-derivatives/quotes_BNBF0:USTF0_20250220
["timestamp","ask_amount","ask_price","bid_price","bid_amount"]
[1740010571009,1.10089684,650.98,649.55,0.30790547]
[1740010571211,1.10089684,650.97,649.55,0.30790547]
[1740010571411,1.10089684,650.96,649.55,0.30790547]
[1740010571616,1.10089684,650.95,649.55,0.30790547]
[1740010571813,0.30721494,651.01,649.55,0.30790547]
[1740010572017,1.10102495,651.0,649.55,0.30790547]
[1740010572218,1.10102495,650.99,649.55,0.30790547]
[1740010572416,1.10102495,650.98,649.55,0.30790547]
[1740010572620,1.10102495,650.97,649.55,0.30790547]
[1740010572815,1.10102495,650.96,649.55,0.30790547]
[1740010573016,1.10102495,650.95,649.55,0.30790547]
[1740010573220,1.10102495,650.94,649.55,0.30790547]
[1740010573420,0.30721494,651.01,649.55,0.30790547]
[1740010573421,1.10102495,650.93,649.55,0.30790547]
[1740010573617,1.10102495,650.92,649.55,0.30790547]
[1740010573819,1.10102495,650.91,649.55,0.30790547]
[1740010574022,1.10102495,650.9,649.55,0.30790547]
[1740010574224,1.10102495,650.89,649.55,0.30790547]
[1740010574518,1.10102495,650.88,649.55,0.30790547]
[1740010574722,1.10102495,650.87,649.55,0.30790547]
[1740010574925,1.10102495,650.86,649.55,0.30790547]
[1740010575121,1.10102495,650.85,649.55,0.30790547]
[1740010575321,1.10102495,650.84,649.55,0.30790547]
[1740010575521,1.10102495,650.83,649.55,0.30790547]
[1740010575726,0.30721494,651.01,649.55,0.30790547]
[1740010575727,1.10102495,650.82,649.55,0.30790547]
[1740010575922,1.10155061,650.81,649.55,0.30790547]
[1740010576124,1.10155061,650.8,649.55,0.30790547]
[1740010576327,1.10155061,650.79,649.55,0.30790547]
[1740010576527,1.10155061,650.78,649.55,0.30790547]
[1740010576729,0.30721494,651.01,649.55,0.30790547]
[1740010576730,1.10155061,650.77,649.55,0.30790547]
[1740010576928,1.10155061,650.76,649.55,0.30790547]
[1740010577226,1.10155061,650.75,649.55,0.30790547]
[1740010577427,1.10155061,650.74,649.55,0.30790547]
[1740010577727,1.10155061,650.73,649.55,0.30790547]
[1740010577920,1.10155061,650.72,649.55,0.30790547]
[1740010578125,1.10155061,650.71,649.55,0.30790547]
[1740010578329,1.10155061,650.7,649.55,0.30790547]
[1740010578528,1.10155061,650.69,649.55,0.30790547]
[1740010578823,1.10155061,650.68,649.55,0.30790547]
[1740010579030,1.10155061,650.67,649.55,0.30790547]
[1740010579221,0.30721494,651.01,649.55,0.30790547]
[1740010579222,1.10155061,650.66,649.55,0.30790547]
[1740010579422,1.10155061,650.65,649.55,0.30790547]
[1740010579630,1.10155061,650.64,649.55,0.30790547]
[1740010579828,1.10155061,650.63,649.55,0.30790547]
[1740010580125,1.10155061,650.62,649.55,0.30790547]
[1740010580328,1.10155061,650.61,649.55,0.30790547]
[1740010580529,1.10155061,650.6,649.55,0.30790547]
[1740010580732,1.10155061,650.59,649.55,0.30790547]
[1740010580927,1.10163398,650.58,649.55,0.30790547]
[1740010581131,0.30721494,651.01,649.55,0.30790547]
[1740010581330,1.10162459,651.0,649.55,0.30790547]
[1740010581532,1.10162459,650.99,649.55,0.30790547]
[1740010581833,1.40885369,650.98,649.55,0.30790547]
[1740010582132,1.40885841,650.97,649.55,0.30790547]
[1740010582330,1.10162459,650.96,649.55,0.30790547]
[1740010582525,1.10162459,650.95,649.55,0.30790547]
[1740010582726,1.10162459,650.94,649.55,0.30790547]
[1740010582932,1.10162459,650.93,649.55,0.30790547]
[1740010583232,1.10162459,650.92,649.55,0.30790547]
[1740010583432,1.10162459,650.91,649.55,0.30790547]
[1740010583634,1.10162459,650.9,649.55,0.30790547]
[1740010583826,1.10162459,650.89,649.55,0.30790547]
[1740010584031,1.10162459,650.88,649.55,0.30790547]
[1740010584333,1.10162459,650.87,649.55,0.30790547]
[1740010584530,1.10162459,650.86,649.55,0.30790547]
[1740010584730,1.10158683,650.85,649.55,0.30790547]
[1740010584934,1.10158683,650.84,649.55,0.30790547]
[1740010585132,1.10158683,650.83,649.55,0.30790547]
[1740010585333,1.10158683,650.82,649.55,0.30790547]
[1740010585532,1.10158683,650.81,649.55,0.30790547]
[1740010585733,1.10158683,650.8,649.55,0.30790547]
[1740010585934,1.10158683,650.79,649.55,0.30790547]
[1740010586133,1.10158683,650.78,649.55,0.30790547]
[1740010586333,1.10158683,650.77,649.55,0.30790547]
[1740010586529,1.10158683,650.76,649.55,0.30790547]
[1740010586729,1.10158683,650.75,649.55,0.30790547]
[1740010586932,1.10158683,650.74,649.55,0.30790547]
[1740010587132,1.10158683,650.73,649.55,0.30790547]
[1740010587335,1.10158683,650.72,649.55,0.30790547]
[1740010587635,1.10158683,650.71,649.55,0.30790547]
[1740010587934,1.10158683,650.7,649.55,0.30790547]
[1740010588134,0.30723382,650.97,649.55,0.30790547]
[1740010588135,1.10158683,650.69,649.55,0.30790547]
[1740010588333,1.10158683,650.68,649.55,0.30790547]
[1740010588529,1.10158683,650.67,649.55,0.30790547]
[1740010588730,1.10158683,650.66,649.55,0.30790547]
[1740010589032,1.10158683,650.65,649.55,0.30790547]
[1740010589235,1.10158683,650.64,649.55,0.30790547]
[1740010589435,1.10158683,650.63,649.55,0.30790547]
[1740010589637,1.10158683,650.62,649.55,0.30790547]
[1740010589839,1.10158683,650.61,649.55,0.30790547]
[1740010590132,1.10158683,650.6,649.55,0.30790547]
[1740010590338,0.30723382,650.97,649.55,0.30790547]
[1740010590539,1.10151133,650.96,649.55,0.30790547]
[1740010590730,1.10151133,650.95,649.55,0.30790547]
[1740010590930,1.10151133,650.94,649.55,0.30790547]
[1740010591135,1.10151133,650.93,649.55,0.30790547]
[1740010591332,1.10151133,650.92,649.55,0.30790547]
[1740010591538,1.10151133,650.91,649.55,0.30790547]
[1740010591838,1.10151133,650.9,649.55,0.30790547]
[1740010592039,1.10151133,650.89,649.55,0.30790547]
[1740010592234,1.10151133,650.88,649.55,0.30790547]
[1740010592434,1.10156248,650.87,649.55,0.30790547]
[1740010592738,1.10156248,650.86,649.55,0.30790547]
[1740010593034,1.10156248,650.85,649.55,0.30790547]
[1740010593237,1.10156248,650.84,649.55,0.30790547]
[1740010593436,1.10156248,650.83,649.55,0.30790547]
[1740010593637,1.10156248,650.82,649.55,0.30790547]
[1740010593837,1.10156248,650.81,649.55,0.30790547]
[1740010594034,1.10156248,650.8,649.55,0.30790547]
[1740010594241,1.10156248,650.79,649.55,0.30790547]
[1740010594436,1.10156248,650.78,649.55,0.30790547]
[1740010594639,1.10156248,650.77,649.55,0.30790547]
[1740010594935,1.10156248,650.76,649.55,0.30790547]
[1740010595141,1.10156248,650.75,649.55,0.30790547]
[1740010595340,1.10156248,650.74,649.55,0.30790547]
[1740010595542,1.10156248,650.73,649.55,0.30790547]
[1740010595841,1.10156248,650.72,649.55,0.30790547]
[1740010596041,1.10156248,650.71,649.55,0.30790547]
[1740010596236,1.10156248,650.7,649.55,0.30790547]
[1740010596442,1.10179794,650.69,649.55,0.30790547]
[1740010596642,1.10179794,650.68,649.55,0.30790547]
[1740010596838,0.30723382,650.97,649.55,0.30790547]
[1740010596839,1.10179794,650.67,649.55,0.30790547]
[1740010597038,1.10179794,650.66,649.55,0.30790547]
[1740010597238,1.10179794,650.65,649.55,0.30790547]
[1740010597543,1.10179794,650.64,649.55,0.30790547]
[1740010597739,1.10179794,650.63,649.55,0.30790547]
[1740010597942,1.10179794,650.62,649.55,0.30790547]
[1740010598147,1.10179794,650.61,649.55,0.30790547]
[1740010598347,1.10179794,650.6,649.55,0.30790547]
[1740010598550,1.10179794,650.59,649.55,0.30790547]
[1740010598848,1.10179794,650.58,649.55,0.30790547]
[1740010599050,1.10179794,650.57,649.55,0.30790547]
[1740010599243,1.10179794,650.56,649.55,0.30790547]
[1740010599545,1.10179794,650.55,649.55,0.30790547]
[1740010599748,1.10179794,650.54,649.55,0.30790547]
[1740010599949,1.10179794,650.53,649.55,0.30790547]
[1740010600149,1.10179794,650.52,649.55,0.30790547]
[1740010600351,1.10179794,650.51,649.55,0.30790547]
[1740010600546,1.10179794,650.5,649.55,0.30790547]
[1740010600748,1.10179794,650.49,649.55,0.30790547]
[1740010600949,1.10179794,650.48,649.55,0.30790547]
[1740010601149,1.10179794,650.47,649.55,0.30790547]
[1740010601453,0.30725269,650.93,649.55,0.30790547]
[1740010601454,1.10179794,650.46,649.55,0.30790547]
[1740010601681,1.10179794,650.45,649.55,0.30790547]
[1740010601845,1.10179794,650.44,649.55,0.30790547]
[1740010602045,1.10179794,650.43,649.55,0.30790547]
[1740010602248,1.10179794,650.42,649.55,0.30790547]
[1740010602445,1.10179794,650.41,649.55,0.30790547]
[1740010602649,1.10015483,650.4,649.55,0.30790547]
[1740010602848,1.10015483,650.39,649.55,0.30790547]
[1740010603049,1.10015483,650.38,649.55,0.30790547]
[1740010603246,1.10015483,650.37,649.55,0.30790547]
[1740010603443,0.30725269,650.93,649.55,0.30790547]
[1740010603651,1.38249469,650.92,649.55,0.30790547]
[1740010603845,0.30726686,650.9,649.55,0.30790547]
[1740010604049,1.38249469,650.89,649.55,0.30790547]
[1740010604249,0.30728102,650.87,649.55,0.30790547]
[1740010604447,1.38249469,650.86,649.55,0.30790547]
[1740010604646,1.1326265,651.02,649.55,0.30790547]
[1740010604647,0.30729518,650.84,649.55,0.30790547]
[1740010604952,1.38220973,650.83,649.55,0.30790547]
[1740010605151,1.38220973,650.82,649.55,0.30790547]
[1740010605352,1.68952203,650.81,649.55,0.30790547]
[1740010605543,1.68952675,650.8,649.55,0.30790547]
[1740010605746,0.30732351,650.78,649.55,0.30790547]
[1740010605945,1.38221268,650.77,649.55,0.30790547]
[1740010606149,0.30733768,650.75,649.55,0.30790547]
[1740010606346,1.38221268,650.74,649.55,0.30790547]
[1740010606546,1.68955981,650.73,649.55,0.30790547]
[1740010606748,1.38221268,650.72,649.55,0.30790547]
[1740010607053,1.38221268,650.71,649.55,0.30790547]
[1740010607249,1.68957398,650.7,649.55,0.30790547]
[1740010607554,1.6895787,650.69,649.55,0.30790547]
[1740010607750,1.68958343,650.68,649.55,0.30790547]
[1740010607951,1.68958815,650.67,649.55,0.30790547]
[1740010608151,1.68959287,650.66,649.55,0.30790547]
[1740010608353,1.38221268,650.65,649.55,0.30790547]
[1740010608553,1.68960232,650.64,649.55,0.30790547]
[1740010608753,1.38104418,650.63,649.55,0.30790547]
[1740010609054,1.38104418,650.62,649.43,1.6060056]
[1740010609250,1.688448,650.61,649.43,1.6060056]
[1740010609453,1.68845272,650.6,649.43,1.6060056]
[1740010609653,1.68845745,650.59,649.43,1.6060056]
[1740010609855,1.68846217,650.58,649.43,1.6060056]
[1740010610052,1.6884669,650.57,649.43,1.6060056]
[1740010610249,1.68847162,650.56,649.43,1.6060056]
[1740010610551,1.68847635,650.55,649.43,1.6060056]
[1740010610753,1.40512784,650.54,649.43,1.6060056]
[1740010610950,1.40513257,650.53,649.43,1.6060056]
[1740010611153,1.09769095,650.52,649.43,1.6060056]
[1740010611353,0.30744162,650.53,649.43,1.6060056]
[1740010611354,1.09769095,650.51,649.43,1.6060056]
[1740010611551,0.30744162,650.53,649.44,0.30795762]
[1740010612151,1.09720042,650.52,649.44,0.30795762]
[1740010612356,0.30744162,650.53,649.44,0.30795762]
[1740010613557,1.09720182,650.52,649.44,0.30795762]
[1740010613753,1.09720182,650.51,649.44,0.30795762]
[1740010613958,0.30744162,650.53,649.44,0.30795762]
[1740010614155,1.09724034,650.52,649.44,0.30795762]
[1740010614353,1.09724034,650.51,649.44,0.30795762]
[1740010614659,0.30744162,650.53,649.44,0.30795762]
[1740010615964,1.09726354,650.52,649.44,0.30795762]
[1740010616160,1.09726354,650.51,649.44,0.30795762]
[1740010616356,1.09726354,650.5,649.44,0.30795762]
[1740010616563,1.09726354,650.49,649.44,0.30795762]
[1740010616761,1.09726354,650.48,649.44,0.30795762]
[1740010616962,1.09726354,650.47,649.44,0.30795762]
[1740010617156,0.30744162,650.53,649.44,0.30795762]
[1740010617556,1.09713606,650.52,649.44,0.30795762]
[1740010617960,1.09713606,650.51,649.44,0.30795762]
[1740010618161,1.09702754,650.5,649.44,0.30795762]
[1740010618362,1.09702754,650.49,649.44,0.30795762]
[1740010618563,1.09702754,650.48,649.44,0.30795762]
[1740010618762,1.09702754,650.47,649.44,0.30795762]
[1740010619063,1.09702754,650.46,649.44,0.30795762]
[1740010619263,1.09702754,650.45,649.44,0.30795762]
[1740010619459,1.09702754,650.44,649.44,0.30795762]
[1740010619663,1.09702754,650.43,649.44,0.30795762]
[1740010619864,1.09702754,650.42,649.44,0.30795762]
[1740010620058,1.09644594,650.41,649.34,1.60639481]
[1740010620363,1.09644594,650.4,649.34,1.60639481]
[1740010620563,0.30744162,650.53,649.34,1.60639481]
[1740010620564,1.09644594,650.39,649.34,1.60639481]
[1740010620762,1.09644594,650.38,649.34,1.60639481]
[1740010620962,1.09644594,650.37,649.34,1.60639481]
[1740010621158,1.09644594,650.36,649.34,1.60639481]
[1740010621462,1.09644594,650.35,649.34,1.60639481]
[1740010621662,1.09644594,650.34,649.34,1.60639481]
[1740010621863,1.09644594,650.33,649.34,1.60639481]
[1740010622066,1.09644594,650.32,649.34,1.60639481]
[1740010622262,1.09644594,650.31,649.34,1.60639481]
[1740010622464,1.09644594,650.3,649.34,1.60639481]
[1740010622663,1.09644594,650.29,649.34,1.60639481]
[1740010622861,1.09644594,650.28,649.34,1.60639481]
[1740010623063,1.09644594,650.27,649.34,1.60639481]
[1740010623261,0.30744162,650.53,649.34,1.60639481]
[1740010623262,1.09644594,650.26,649.34,1.60639481]
[1740010623463,1.09644594,650.25,648.49,1.3565794]
[1740010623663,1.09644594,650.24,648.51,0.30839925]
[1740010623864,1.09644594,650.23,649.24,1.60669765]
[1740010624060,1.09644594,650.22,648.51,0.30839925]
[1740010624363,1.09557643,650.21,648.52,1.60721708]
[1740010624564,1.09557643,650.2,648.54,0.30838498]
[1740010624761,1.09557643,650.19,648.54,0.30838498]
[1740010624965,1.09557643,650.18,648.54,0.30838498]
[1740010625161,1.09560954,650.17,648.54,0.30838498]
[1740010625363,0.30744162,650.53,648.54,0.30838498]
[1740010625565,1.37808094,650.52,648.54,0.30838498]
[1740010625766,1.68553201,650.51,648.54,0.30838498]
[1740010625967,1.37808094,650.5,648.54,0.30838498]
[1740010626167,1.37808094,650.49,648.54,0.30838498]
[1740010626362,1.68554619,650.48,648.54,0.30838498]
[1740010626568,0.74503327,650.95,648.54,0.30838498]
[1740010626569,1.68555092,650.47,648.54,0.30838498]
[1740010626768,1.09536832,650.46,648.54,0.30838498]
[1740010626967,0.30746998,650.47,648.54,0.30838498]
[1740010626968,1.09536832,650.45,648.54,0.30838498]
[1740010627164,1.09536832,650.44,648.54,0.30838498]
[1740010627367,1.09536832,650.43,648.54,0.30838498]
[1740010627572,1.09536832,650.42,648.54,0.30838498]
[1740010627764,1.09536832,650.41,648.54,0.30838498]
[1740010627972,1.09536832,650.4,648.54,0.30838498]
[1740010628170,1.09536832,650.39,648.54,0.30838498]
[1740010628473,1.09536832,650.38,648.54,0.30838498]
[1740010628772,1.09536832,650.37,648.54,0.30838498]
[1740010629071,1.09536832,650.36,648.54,0.30838498]
[1740010629271,1.09536832,650.35,648.54,0.30838498]
[1740010629473,1.09536832,650.34,648.54,0.30838498]
[1740010629674,1.09536832,650.33,648.54,0.30838498]
[1740010629869,1.09536832,650.32,648.54,0.30838498]
[1740010630067,1.09536832,650.31,648.54,0.30838498]
[1740010630374,1.09536832,650.3,648.54,0.30838498]
[1740010630668,1.09536832,650.29,648.54,0.30838498]
[1740010630876,0.30746998,650.47,648.54,0.30838498]
[1740010631076,1.09441903,650.46,648.54,0.30838498]
[1740010631375,1.09441903,650.45,648.54,0.30838498]
[1740010631577,1.09441903,650.44,648.54,0.30838498]
[1740010631779,1.09441903,650.43,648.54,0.30838498]
[1740010631970,1.09441903,650.42,648.54,0.30838498]
[1740010632174,0.30747943,650.45,648.54,0.30838498]
[1740010632175,1.0943444,650.41,648.54,0.30838498]
[1740010632375,1.0943444,650.4,648.54,0.30838498]
[1740010632676,1.0943444,650.39,648.54,0.30838498]
[1740010632978,1.40185693,650.38,648.54,0.30838498]
[1740010633278,1.40186165,650.37,648.54,0.30838498]
[1740010633479,1.0943444,650.36,648.54,0.30838498]
[1740010633672,1.40187111,650.35,648.54,0.30838498]
[1740010633876,1.0943444,650.34,648.54,0.30838498]
[1740010634075,1.0943444,650.33,648.54,0.30838498]
[1740010634276,1.0943444,650.32,648.54,0.30838498]
[1740010634471,1.0943444,650.31,648.54,0.30838498]
[1740010634674,1.0943444,650.3,648.54,0.30838498]
[1740010634873,1.0943444,650.29,648.54,0.30838498]
[1740010635078,1.0943444,650.28,648.54,0.30838498]
[1740010635278,1.0943444,650.27,648.54,0.30838498]
[1740010635479,0.30752671,650.35,648.54,0.30838498]
[1740010635480,1.0943444,650.26,648.54,0.30838498]
[1740010635777,1.0943444,650.25,648.54,0.30838498]
[1740010635973,1.0943444,650.24,648.54,0.30838498]
[1740010636176,1.09448384,650.23,648.54,0.30838498]
[1740010636377,0.30752671,650.35,648.54,0.30838498]
[1740010636581,1.09478012,650.34,648.54,0.30838498]
[1740010636772,1.09478012,650.33,648.54,0.30838498]
[1740010636973,0.30752671,650.35,648.54,0.30838498]
[1740010638174,1.09507588,650.34,648.54,0.30838498]
[1740010638377,1.09506777,650.33,648.54,0.30838498]
[1740010638574,1.0951899,650.32,648.54,0.30838498]
[1740010638780,1.0951899,650.31,648.54,0.30838498]
[1740010639079,1.0951899,650.3,648.54,0.30838498]
[1740010639279,1.0951899,650.29,648.54,0.30838498]
[1740010639481,0.30752671,650.35,648.67,1.3565794]
[1740010639677,1.09521377,650.34,648.67,1.3565794]
[1740010639877,1.09521377,650.33,648.69,0.30831367]
[1740010640079,0.30752671,650.35,648.69,0.30831367]
[1740010640378,1.09528671,650.34,648.69,0.30831367]
[1740010640581,0.30752671,650.35,648.69,0.30831367]
[1740010641382,0.30752671,650.35,648.78,1.3565794]
[1740010641581,0.30752671,650.35,648.8,0.3082614]
[1740010646981,1.1326265,651.02,648.8,0.3082614]
[1740010647180,0.30721966,651.0,648.8,0.3082614]
[1740010647380,1.37875413,650.99,648.8,0.3082614]
[1740010647583,0.30723382,650.97,648.8,0.3082614]
[1740010647881,1.37875413,650.96,648.8,0.3082614]
[1740010648075,0.30724797,650.94,648.8,0.3082614]
[1740010648275,1.37875413,650.93,648.8,0.3082614]
[1740010648478,1.37875413,650.92,648.8,0.3082614]
[1740010648682,1.37875413,650.91,648.8,0.3082614]
[1740010648882,1.37875413,650.9,648.8,0.3082614]
[1740010649181,1.68602571,650.89,648.8,0.3082614]
[1740010649380,1.68603043,650.88,648.8,0.3082614]
[1740010649575,1.40346459,650.87,648.8,0.3082614]
[1740010649880,1.37877597,650.86,648.8,0.3082614]
[1740010650081,1.37877597,650.85,648.8,0.3082614]
[1740010650279,1.37877597,650.84,648.8,0.3082614]
[1740010650480,1.68607587,650.83,648.8,0.3082614]
[1740010650679,1.6860806,650.82,648.8,0.3082614]
[1740010650876,1.09618357,650.81,648.8,0.3082614]
[1740010651080,1.09618357,650.8,648.8,0.3082614]
[1740010651281,1.09618357,650.79,648.8,0.3082614]
[1740010651481,1.40350708,650.78,648.8,0.3082614]
[1740010651681,1.40351181,650.77,648.8,0.3082614]
[1740010651882,1.40351653,650.76,648.8,0.3082614]
[1740010652085,1.40352125,650.75,648.8,0.3082614]
[1740010652383,1.40352598,650.74,648.8,0.3082614]
[1740010652575,1.4035307,650.73,648.8,0.3082614]
[1740010652777,1.1326265,651.28,648.8,0.3082614]
[1740010652778,1.40353542,650.72,648.8,0.3082614]
[1740010652980,1.09618357,650.71,648.8,0.3082614]
[1740010653177,1.09618357,650.7,648.8,0.3082614]
[1740010653375,1.09618357,650.69,648.8,0.3082614]
[1740010653576,1.09618357,650.68,648.8,0.3082614]
[1740010653778,1.09618357,650.67,648.8,0.3082614]
[1740010653978,1.09618357,650.66,648.8,0.3082614]
[1740010654181,1.09618357,650.65,648.8,0.3082614]
[1740010654385,1.09618357,650.64,648.8,0.3082614]
[1740010654581,1.09618357,650.63,648.8,0.3082614]
[1740010654781,1.09618357,650.62,648.8,0.3082614]
[1740010654983,1.09618357,650.61,648.8,0.3082614]
[1740010655183,1.09618357,650.6,648.8,0.3082614]
[1740010655376,1.09618357,650.59,648.8,0.3082614]
[1740010655583,1.40360156,650.58,648.8,0.3082614]
[1740010655782,1.40360629,650.57,648.8,0.3082614]
[1740010655976,1.40361101,650.56,648.8,0.3082614]
[1740010656178,1.09618357,650.55,648.8,0.3082614]
[1740010656382,1.09618357,650.54,648.8,0.3082614]
[1740010656583,1.09618357,650.53,648.8,0.3082614]
[1740010656884,1.40362992,650.52,648.8,0.3082614]
[1740010657085,1.40363464,650.51,648.8,0.3082614]
[1740010657280,1.40363937,650.5,648.8,0.3082614]
[1740010657486,1.09618357,650.49,648.8,0.3082614]
[1740010657679,0.3074558,650.5,648.8,0.3082614]
[1740010657680,1.09618357,650.48,648.8,0.3082614]
[1740010657880,1.09618357,650.47,648.8,0.3082614]
[1740010658086,1.09618357,650.46,648.8,0.3082614]
[1740010658286,1.09618357,650.45,648.8,0.3082614]
[1740010658487,1.09618357,650.44,648.8,0.3082614]
[1740010658685,1.09618357,650.43,648.8,0.3082614]
[1740010658884,1.09618357,650.42,648.8,0.3082614]
[1740010659085,1.09618357,650.41,648.8,0.3082614]
[1740010659288,1.09618357,650.4,648.8,0.3082614]
[1740010659488,1.09618357,650.39,648.8,0.3082614]
[1740010659689,1.09618357,650.38,648.8,0.3082614]
[1740010659884,1.09618357,650.37,648.8,0.3082614]
[1740010660083,1.09618357,650.36,648.8,0.3082614]
[1740010660288,1.09618357,650.35,648.8,0.3082614]
[1740010660590,1.09618357,650.34,648.8,0.3082614]
[1740010660791,1.09841108,650.33,648.8,0.3082614]
[1740010661090,1.09841108,650.32,648.8,0.3082614]
[1740010661285,1.09841108,650.31,648.8,0.3082614]
[1740010661589,1.09841108,650.3,648.8,0.3082614]
[1740010661789,0.30746052,650.49,648.8,0.3082614]
[1740010661990,1.0987285,650.48,648.8,0.3082614]
[1740010662185,1.0987285,650.47,648.8,0.3082614]
[1740010662386,0.30746052,650.49,648.8,0.3082614]
[1740010662387,1.0987285,650.46,648.8,0.3082614]
[1740010662591,1.0987285,650.45,648.8,0.3082614]
[1740010662789,1.0987285,650.44,648.8,0.3082614]
[1740010662985,1.0987285,650.43,648.8,0.3082614]
[1740010663188,1.0987285,650.42,648.8,0.3082614]
[1740010663390,1.0987285,650.41,648.8,0.3082614]
[1740010663689,1.09877967,650.4,648.8,0.3082614]
[1740010663991,1.09877967,650.39,648.8,0.3082614]
[1740010664192,1.09877967,650.38,648.8,0.3082614]
[1740010664389,1.09877967,650.37,648.8,0.3082614]
[1740010664586,1.09877967,650.36,648.8,0.3082614]
[1740010664789,1.09880645,650.35,648.8,0.3082614]
[1740010665091,1.09880645,650.34,648.8,0.3082614]
[1740010665286,1.09880645,650.33,648.8,0.3082614]
[1740010665485,1.09880645,650.32,648.8,0.3082614]
[1740010665690,0.30746052,650.49,648.8,0.3082614]
[1740010665890,1.09932947,650.48,648.8,0.3082614]
[1740010666087,1.09932947,650.47,648.8,0.3082614]
[1740010666290,1.09932947,650.46,648.8,0.3082614]
[1740010666488,1.09932947,650.45,648.8,0.3082614]
[1740010666694,1.09932947,650.44,648.8,0.3082614]
[1740010666893,0.30746052,650.49,648.8,0.3082614]
[1740010666894,1.09938461,650.43,648.8,0.3082614]
[1740010667088,1.09938461,650.42,648.8,0.3082614]
[1740010667292,1.09938461,650.41,648.8,0.3082614]
[1740010667593,1.09938461,650.4,648.8,0.3082614]
[1740010667893,1.09938461,650.39,648.8,0.3082614]
[1740010668094,1.09938461,650.38,648.8,0.3082614]
[1740010668295,1.09938461,650.37,648.8,0.3082614]
[1740010668594,1.09954518,650.36,648.8,0.3082614]
[1740010668793,1.09954518,650.35,648.8,0.3082614]
[1740010668995,1.09954518,650.34,648.8,0.3082614]
[1740010669194,1.09954518,650.33,648.8,0.3082614]
[1740010669394,1.09954518,650.32,648.8,0.3082614]
[1740010669593,0.30746052,650.49,648.8,0.3082614]
[1740010669889,1.09936214,650.48,648.8,0.3082614]
[1740010670094,1.09937532,650.47,648.8,0.3082614]
[1740010670295,1.09937532,650.46,648.8,0.3082614]
[1740010670497,1.09937532,650.45,648.8,0.3082614]
[1740010670690,1.09937532,650.44,648.8,0.3082614]
[1740010670892,1.09937532,650.43,648.8,0.3082614]
[1740010671096,1.09937532,650.42,648.8,0.3082614]
[1740010671295,1.09937532,650.41,648.8,0.3082614]
[1740010671597,0.30746052,650.49,648.8,0.3082614]
[1740010673095,1.1326265,651.17,648.8,0.3082614]
[1740010673295,1.38164481,651.16,648.8,0.3082614]
[1740010673492,8.55112826,653.0,648.8,0.3082614]
[1740010673493,1.1326265,651.05,649.23,1.3565794]
[1740010673694,1.38164481,651.04,649.23,1.3565794]
[1740010673897,1.38164481,651.03,649.23,1.3565794]
[1740010674091,1.38164481,651.02,649.23,1.3565794]
[1740010674297,1.68885975,651.01,649.24,3.00387038]
[1740010674598,1.68886447,651.0,649.26,0.308043]
[1740010674800,1.38164472,650.99,649.26,0.308043]
[1740010674999,1.40639648,650.98,649.26,0.308043]
[1740010675300,1.4064012,650.97,649.26,0.308043]
[1740010675500,1.09916738,650.96,649.26,0.308043]
[1740010675702,1.09916738,650.95,649.26,0.308043]
[1740010675999,1.09916738,650.94,649.26,0.308043]
[1740010676302,1.09916738,650.93,649.26,0.308043]
[1740010676494,1.09916738,650.92,649.26,0.308043]
[1740010676699,1.09916738,650.91,649.26,0.308043]
[1740010676903,1.09916738,650.9,649.26,0.308043]
[1740010677104,1.09744434,650.89,649.26,0.308043]
[1740010677406,1.09744434,650.88,649.26,0.308043]
[1740010677604,1.09744434,650.87,649.26,0.308043]
[1740010677806,1.09744434,650.86,649.26,0.308043]
[1740010677998,1.09744434,650.85,649.26,0.308043]
[1740010678204,1.09744434,650.84,649.26,0.308043]
[1740010678404,1.0969289,650.83,649.26,0.308043]
[1740010678601,1.0969289,650.82,649.26,0.308043]
[1740010679106,1.0969289,650.81,649.26,0.308043]
[1740010679307,0.30723382,650.97,649.26,0.308043]
[1740010680101,1.09683687,650.96,649.26,0.308043]
[1740010680308,1.09683687,650.95,649.26,0.308043]
[1740010680507,1.09683687,650.94,649.26,0.308043]
[1740010680805,1.09683687,650.93,649.26,0.308043]
[1740010681006,1.09683687,650.92,649.26,0.308043]
[1740010681204,1.09683687,650.91,649.26,0.308043]
[1740010681405,1.09683687,650.9,649.26,0.308043]
[1740010681609,1.09683687,650.89,649.26,0.308043]
[1740010681810,0.30723382,650.97,649.26,0.308043]
[1740010681811,1.09683687,650.88,649.26,0.308043]
[1740010682110,1.09683687,650.87,649.26,0.308043]
[1740010682409,1.09683687,650.86,649.26,0.308043]
[1740010682609,1.09683687,650.85,649.26,0.308043]
[1740010682810,1.09683687,650.84,649.26,0.308043]
[1740010683010,1.09683687,650.83,649.26,0.308043]
[1740010683310,1.09683687,650.82,649.26,0.308043]
[1740010683503,1.09683687,650.81,649.26,0.308043]
[1740010683704,1.09683687,650.8,649.26,0.308043]
[1740010683911,1.09683687,650.79,649.26,0.308043]
[1740010684110,1.09683687,650.78,649.26,0.308043]
[1740010684306,1.09683687,650.77,649.26,0.308043]
[1740010684507,0.30723382,650.97,649.26,0.308043]
[1740010684710,1.09554368,650.96,649.26,0.308043]
[1740010684911,1.09554368,650.95,649.26,0.308043]
[1740010685213,1.09554368,650.94,649.26,0.308043]
[1740010685407,1.09554368,650.93,649.26,0.308043]
[1740010685612,1.09554368,650.92,649.26,0.308043]